bitfinex-derivatives/quotes_ETHF0:USTF0_20260223
["timestamp","ask_amount","ask_price","bid_price","bid_amount"]
[1771831537779,0.56449197,1879.3,1878.5,0.55339566]
[1771831538083,0.56449197,1879.1,1878.5,0.55339566]
[1771831538279,0.56449197,1878.7,1878.1,0.55339566]
[1771831540679,0.56449197,1878.7,1878.0,1.81803974]
[1771831540680,0.56449197,1878.7,1878.3,0.55339566]
[1771831540877,0.56449197,1878.5,1878.0,0.55816373]
[1771831543481,0.56449197,1878.5,1878.1,0.55339566]
[1771831543678,0.56449197,1878.5,1878.0,0.00476807]
[1771831544083,0.56449197,1878.1,1877.8,0.55339566]
[1771831544385,0.56449197,1878.1,1877.7,0.55339566]
[1771831545184,0.56449197,1878.1,1877.7,0.55727739]
[1771831545780,0.56449197,1878.1,1877.7,0.00388173]
[1771831547889,0.56449197,1878.1,1877.4,2.41518253]
[1771831548086,0.56449197,1878.1,1877.5,0.60191086]
[1771831548387,0.56449197,1878.1,1876.8,2.07972167]
[1771831548388,1.16272383,1878.0,1877.3,0.60191086]
[1771831548587,0.57652707,1877.9,1877.3,0.60191086]
[1771831548788,0.58294638,1877.9,1877.3,0.60698267]
[1771831553792,0.57652707,1877.8,1877.3,0.60698267]
[1771831555991,0.57652707,1877.8,1877.2,0.60191086]
[1771831556294,0.57652707,1877.8,1876.9,0.60191086]
[1771831556495,0.57652707,1877.8,1877.1,0.60191086]
[1771831556994,0.57652707,1877.8,1877.1,0.60694206]
[1771831560492,0.57652707,1877.8,1877.3,0.60191086]
[1771831561795,0.00641931,1877.9,1877.7,0.60191086]
[1771831561994,0.57652707,1878.5,1877.7,0.60191086]
[1771831562298,0.57652707,1878.3,1877.7,0.60191086]
[1771831562894,0.58118049,1878.3,1877.7,0.60191086]
[1771831568102,0.58118049,1878.3,1877.5,0.60191086]
[1771831568401,0.57652707,1878.1,1877.5,0.60191086]
[1771831572404,0.57652707,1877.9,1877.5,0.60191086]
[1771831573005,0.57652707,1877.9,1877.3,0.60191086]
[1771831573998,0.57652707,1877.9,1877.1,0.0050312]
[1771831574203,0.57652707,1877.4,1877.1,0.60694206]
[1771831574405,0.57652707,1877.4,1876.7,0.45006388]
[1771831574607,0.57652707,1877.4,1876.9,0.45006388]
[1771831574905,0.57652707,1877.8,1877.1,0.45006388]
[1771831575105,0.57652707,1877.6,1877.1,0.43873538]
[1771831575408,0.57652707,1877.6,1877.1,0.44434438]
[1771831588422,0.59876435,1877.4,1876.7,0.44985687]
[1771831589328,0.59876435,1877.4,1876.9,0.44985687]
[1771831589525,0.59876435,1877.4,1876.9,0.45624616]
[1771831589726,0.59876435,1877.4,1877.1,0.44985687]
[1771831590429,0.59876435,1877.4,1877.0,0.44918037]
[1771831598635,0.59876435,1877.4,1876.9,0.45374543]
[1771831599128,0.59876435,1877.4,1876.9,0.00638929]
[1771831599328,0.59876435,1877.2,1876.7,0.44735614]
[1771831600236,0.59876435,1877.2,1876.7,0.45253894]
[1771831602737,0.59876435,1877.0,1876.7,0.0051828]
[1771831602937,0.59876435,1877.0,1876.6,0.4513199]
[1771831603938,0.59876435,1877.0,1876.6,0.45634865]
[1771831606543,0.59876435,1877.0,1876.6,0.00502875]
[1771831606841,0.59876435,1877.0,1876.6,0.45740443]
[1771831607036,0.59876435,1877.0,1875.8,8.2598842]
[1771831607037,0.59876435,1876.8,1876.2,0.45237568]
[1771831608042,0.60273162,1876.8,1876.2,0.45697035]
[1771831611941,0.60733189,1877.1,1876.5,0.47842751]
[1771831612843,0.613225,1877.1,1876.5,0.47842751]
[1771831619348,0.613225,1877.1,1876.3,0.48242518]
[1771831619547,0.60733189,1876.9,1876.3,0.48242518]
[1771831621652,0.00589311,1877.1,1876.2,0.00459467]
[1771831621653,0.613225,1877.1,1876.5,0.47986742]
[1771831623048,0.00589311,1877.1,1876.5,0.47986742]
[1771831623354,0.60733189,1877.6,1877.0,0.47296248]
[1771831624249,0.61268028,1877.6,1877.0,0.47296248]
[1771831624453,0.61268028,1877.6,1876.8,0.47342166]
[1771831624652,0.60733189,1877.4,1876.8,0.47342166]
[1771831629550,0.60733189,1877.4,1876.8,0.47342166]
[1771831634062,0.61268028,1877.6,1876.8,0.47342166]
[1771831640267,0.60023418,1877.4,1876.8,0.47342166]
[1771831641368,0.60023418,1877.4,1876.3,0.43739736]
[1771831642465,0.60023418,1877.2,1876.3,0.43739736]
[1771831645875,0.60023418,1877.2,1876.5,0.42265896]
[1771831650775,0.60023418,1877.3,1876.7,0.42717376]
[1771831651286,0.60023418,1877.3,1876.9,0.42717376]
[1771831651781,0.60023418,1877.5,1876.9,0.42717376]
[1771831652284,1.18813207,1877.4,1876.9,0.42717376]
[1771831652482,0.60023418,1877.4,1876.9,0.42717376]
[1771831657186,0.60023418,1877.5,1876.9,0.42717376]
[1771831657386,0.60023418,1877.5,1877.2,2.38340116]
[1771831657683,0.60558257,1877.6,1877.3,0.56800496]
[1771831658282,0.23313488,1877.8,1877.3,0.56800496]
[1771831658483,0.82110308,1877.7,1877.3,0.56800496]
[1771831658683,0.23313488,1877.7,1877.3,0.56800496]
[1771831659377,0.23808035,1877.7,1877.3,0.56800496]
[1771831662186,0.23808035,1877.7,1877.2,0.56800496]
[1771831663282,0.23808035,1877.7,1877.0,1.8153962]
[1771831663486,0.23131352,1877.5,1877.1,0.56800496]
[1771831663886,0.00494547,1877.7,1877.1,0.56800496]
[1771831664185,0.8203524,1877.6,1877.1,0.56800496]
[1771831664484,0.23261795,1877.6,1877.1,0.56800496]
[1771831674291,0.24500833,1877.4,1877.1,0.56800496]
[1771831675288,0.24500833,1877.4,1876.8,0.56174924]
[1771831675591,0.8321393,1877.3,1876.8,0.56174924]
[1771831675790,0.2499538,1877.7,1877.1,0.56174924]
[1771831676088,0.24534094,1877.5,1877.1,0.56174924]
[1771831677085,0.00494547,1877.7,1877.1,0.56174924]
[1771831677292,8.4948065,1877.6,1877.1,0.56174924]
[1771831677594,0.58728775,1877.5,1877.1,0.56174924]
[1771831677792,0.24534094,1877.6,1877.1,0.56174924]
[1771831678090,0.83724469,1877.5,1877.1,0.56174924]
[1771831678287,0.24985096,1877.5,1877.1,0.56174924]
[1771831678686,0.00494547,1877.7,1877.1,0.56174924]
[1771831678883,8.5024044,1877.6,1877.1,0.56174924]
[1771831679091,0.58750779,1877.5,1877.1,0.56174924]
[1771831679291,0.24985096,1877.6,1877.1,0.56174924]
[1771831679492,0.58765519,1877.5,1877.1,0.56174924]
[1771831679692,0.24985096,1877.6,1877.1,0.56174924]
[1771831679893,0.58765519,1877.5,1877.1,0.56174924]
[1771831680093,0.24985096,1877.6,1877.1,0.56174924]
[1771831680294,8.2567879,1877.5,1877.1,0.56174924]
[1771831680496,0.24985096,1877.6,1877.1,0.56174924]
[1771831680692,8.25694842,1877.5,1877.1,0.56174924]
[1771831680893,0.25424812,1877.6,1877.1,0.56174924]
[1771831681091,8.25694842,1877.5,1877.1,0.56174924]
[1771831681289,0.58786478,1877.4,1877.1,0.56174924]
[1771831681492,0.25424812,1877.6,1877.1,0.56174924]
[1771831681687,8.51249763,1877.5,1877.1,0.56174924]
[1771831681992,0.58791369,1877.4,1877.1,0.56174924]
[1771831682192,0.25688003,1877.6,1877.1,0.56174924]
[1771831682492,8.25830438,1877.5,1877.1,0.56174924]
[1771831682688,0.58791591,1877.4,1877.1,0.56174924]
[1771831682992,0.25688003,1877.6,1877.1,0.56174924]
[1771831683196,8.25906919,1877.5,1877.1,0.56174924]
[1771831683395,0.25688003,1877.6,1877.1,0.56174924]
[1771831683598,0.58796746,1877.5,1877.1,0.56174924]
[1771831683797,0.25688003,1877.6,1877.1,0.56174924]
[1771831684098,0.58796018,1877.5,1877.1,0.56174924]
[1771831684293,0.25688003,1877.6,1877.1,0.56174924]
[1771831684494,8.25895948,1877.5,1877.1,0.56174924]
[1771831684696,0.25276261,1877.5,1877.1,0.56174924]
[1771831684895,0.5879393,1877.4,1877.1,0.56174924]
[1771831685098,0.25276261,1877.5,1877.1,0.56174924]
[1771831685298,0.8406979,1877.4,1877.0,0.56174924]
[1771831685499,0.25276261,1877.4,1877.0,0.56174924]
[1771831686399,0.85516443,1877.3,1877.0,0.56174924]
[1771831686698,0.26720021,1877.3,1877.0,0.56174924]
[1771831687099,0.26720021,1877.5,1877.0,0.56174924]
[1771831687300,8.52624585,1877.4,1877.0,0.56174924]
[1771831687499,0.58796356,1877.3,1877.0,0.56174924]
[1771831687703,0.26720021,1877.4,1877.0,0.56174924]
[1771831687902,0.58791234,1877.3,1877.0,0.56174924]
[1771831688096,0.26720021,1877.4,1877.0,0.56174924]
[1771831688392,0.58791224,1877.3,1877.0,0.56174924]
[1771831688597,0.26720021,1877.4,1877.0,0.56174924]
[1771831688897,0.85667106,1877.3,1876.9,0.56174924]
[1771831689097,0.26880379,1877.3,1876.9,0.56174924]
[1771831693705,6.2716654,1877.6,1876.9,0.56174924]
[1771831694002,8.51145977,1877.5,1876.9,0.56174924]
[1771831694196,8.51145977,1877.4,1876.9,0.56174924]
[1771831694399,0.58797241,1877.3,1876.9,0.56174924]
[1771831694595,0.25938887,1877.5,1876.9,0.56174924]
[1771831694801,8.51138303,1877.4,1876.9,0.56174924]
[1771831695095,0.58797153,1877.3,1876.9,0.56174924]
[1771831695295,0.25938887,1877.4,1876.9,0.56174924]
[1771831695495,0.5879694,1877.3,1876.9,0.56174924]
[1771831695697,4.46121467,1877.7,1877.2,0.56174924]
[1771831695903,0.00494547,1877.7,1877.4,0.56174924]
[1771831699607,0.24176884,1878.1,1877.7,0.5631208]
[1771831700608,0.24839467,1878.1,1877.7,0.56912563]
[1771831705012,0.00662583,1878.1,1877.7,0.56912563]
[1771831706713,0.25864206,1878.1,1877.7,0.56912563]
[1771831707915,0.26044647,1878.1,1877.7,0.56912563]
[1771831723221,0.00662583,1878.1,1877.7,0.56912563]
[1771831724316,0.58770797,1878.0,1877.7,0.56912563]
[1771831724517,0.00662583,1878.1,1877.7,0.56912563]
[1771831724720,0.58770803,1878.0,1877.7,0.56912563]
[1771831725021,0.00662583,1878.1,1877.7,0.56912563]
[1771831725221,0.58770805,1878.0,1877.7,0.56912563]
[1771831725420,0.2665285,1878.1,1877.7,0.56912563]
[1771831725723,0.58831472,1878.0,1877.7,0.56912563]
[1771831725919,0.2665285,1878.1,1877.7,0.56912563]
[1771831726114,8.25695527,1878.0,1877.7,0.56912563]
[1771831726324,0.2665285,1878.1,1877.7,0.56912563]
[1771831726520,8.2570341,1878.0,1877.7,0.56912563]
[1771831726822,0.2665285,1878.1,1877.7,0.56912563]
[1771831727121,8.25704417,1878.0,1877.7,0.56912563]
[1771831727321,0.2665285,1878.1,1877.7,0.56912563]
[1771831727522,8.25931691,1878.0,1877.7,0.56912563]
[1771831727822,0.00662583,1878.1,1877.7,0.56912563]
[1771831728027,8.26040426,1878.0,1877.7,0.56912563]
[1771831728223,0.00662583,1878.1,1877.7,0.56912563]
[1771831728422,8.26189178,1878.0,1877.7,0.56912563]
[1771831728622,0.58861797,1877.9,1877.7,0.56912563]
[1771831728827,0.00662583,1878.1,1877.7,0.56912563]
[1771831729024,8.26216655,1878.0,1877.7,0.56912563]
[1771831729224,0.58876303,1877.9,1877.7,0.56912563]
[1771831729423,0.00662583,1878.1,1877.7,0.56912563]
[1771831729626,8.26570106,1878.0,1877.7,0.56912563]
[1771831729819,0.58901514,1877.9,1877.7,0.56912563]
[1771831730022,0.00662583,1878.1,1877.7,0.56912563]
[1771831730224,8.26575175,1878.0,1877.7,0.56912563]
[1771831730428,0.58901392,1877.9,1877.7,0.56912563]
[1771831730726,0.00662583,1878.1,1877.7,0.56912563]
[1771831730927,8.26575753,1878.0,1877.7,0.56912563]
[1771831731129,0.5890192,1877.9,1877.7,0.56912563]
[1771831731326,0.00662583,1878.1,1877.7,0.56912563]
[1771831731528,8.26562284,1878.0,1877.7,0.56912563]
[1771831731727,0.58900998,1877.9,1877.7,0.56912563]
[1771831732027,0.00662583,1878.1,1877.7,0.56912563]
[1771831732229,8.26559025,1878.0,1877.7,0.56912563]
[1771831732427,0.58899927,1877.9,1877.7,0.56912563]
[1771831732630,0.00662583,1878.1,1877.7,0.56912563]
[1771831732832,8.26558039,1878.0,1877.7,0.56912563]
[1771831733131,0.58900556,1877.9,1877.7,0.56912563]
[1771831733332,0.00662583,1878.1,1877.7,0.56912563]
[1771831733528,8.2658511,1878.0,1877.7,0.56912563]
[1771831733730,0.58902482,1877.9,1877.7,0.56912563]
[1771831733929,0.26989431,1878.1,1877.7,0.56912563]
[1771831734134,8.26583175,1878.0,1877.7,0.56912563]
[1771831734326,0.58902342,1877.9,1877.3,0.60672377]
[1771831734529,0.26989431,1878.1,1877.3,0.60672377]
[1771831734733,8.26592319,1878.0,1877.3,0.60672377]
[1771831734928,0.58902898,1877.9,1877.3,0.60672377]
[1771831735128,0.26989431,1878.1,1877.3,0.60672377]
[1771831735333,8.86193972,1878.0,1877.3,0.61200187]
[1771831735534,0.58902684,1877.9,1877.3,0.61200187]
[1771831735724,0.59583808,1878.0,1877.3,0.61200187]
[1771831735928,0.58901218,1877.9,1877.3,0.61200187]
[1771831736128,0.59583808,1878.0,1877.3,0.61200187]
[1771831736432,0.58901203,1877.9,1877.3,0.61200187]
[1771831736729,0.59583808,1878.0,1877.3,0.61200187]
[1771831736930,0.58899092,1877.9,1877.3,0.61200187]
[1771831737127,0.59583808,1878.0,1877.3,0.61200187]
[1771831737328,0.58899097,1877.9,1877.3,0.61200187]
[1771831737528,0.59583808,1878.0,1877.3,0.61200187]
[1771831737727,8.27009923,1877.9,1877.3,0.61200187]
[1771831737935,0.59583808,1878.0,1877.3,0.61200187]
[1771831738134,8.27006827,1877.9,1877.3,0.61200187]
[1771831738336,0.59583808,1878.0,1877.3,0.61200187]
[1771831738538,8.27027529,1877.9,1877.3,0.61200187]
[1771831738741,0.59583808,1878.0,1877.3,0.61200187]
[1771831738934,8.27021792,1877.9,1877.3,0.61200187]
[1771831739132,0.59583808,1878.0,1877.3,0.61200187]
[1771831739432,8.27013557,1877.9,1877.3,0.61200187]
[1771831739628,0.59583808,1878.0,1877.3,0.61200187]
[1771831739832,0.23938664,1877.9,1877.3,0.61200187]
[1771831740033,0.00662583,1878.1,1877.3,0.61200187]
[1771831740233,7.680955,1878.0,1877.3,0.61200187]
[1771831740434,0.00662583,1878.1,1877.3,0.61200187]
[1771831740734,7.68095547,1878.0,1877.3,0.61200187]
[1771831741039,0.00662583,1878.1,1877.3,0.61200187]
[1771831741239,7.68084758,1878.0,1877.3,0.61200187]
[1771831741434,0.60246391,1878.1,1877.3,0.61200187]
[1771831741634,7.68083402,1878.0,1877.3,0.61200187]
[1771831741834,0.60246391,1878.1,1877.3,0.61200187]
[1771831742034,7.68083411,1878.0,1877.3,0.61200187]
[1771831742236,0.60246391,1878.1,1877.3,0.61200187]
[1771831742543,7.68078233,1878.0,1877.3,0.61200187]
[1771831742741,0.60246391,1878.1,1877.3,0.61200187]
[1771831742940,7.68075534,1878.0,1877.3,0.61200187]
[1771831743138,0.60246391,1878.1,1877.3,0.61200187]
[1771831743338,8.27656855,1878.0,1877.3,0.61200187]
[1771831743542,0.59583808,1878.0,1877.3,0.61200187]
[1771831743838,2.08113318,1878.6,1877.3,0.61200187]
[1771831743839,0.6127903,1880.1,1878.8,6.54804]
[1771831744038,18.9483052,1880.0,1879.8,6.68974397]
[1771831744343,0.6127903,1880.3,1879.5,6.68974397]
[1771831744641,0.6168695,1880.3,1879.5,0.00604484]
[1771831744842,0.6168695,1880.3,1879.6,0.60672377]
[1771831745144,0.59583808,1880.0,1879.5,0.61276861]
[1771831745541,7.30070105,1879.8,1879.1,0.60672377]
[1771831745741,0.59583808,1879.8,1879.1,0.60672377]
[1771831746444,0.59583808,1879.8,1879.1,0.61253447]
[1771831757148,7.30070105,1879.8,1879.1,0.61253447]
[1771831758549,3.92594894,1879.5,1879.1,0.61253447]
[1771831759249,10.63081191,1879.4,1879.1,0.61253447]
[1771831759450,3.92594894,1879.4,1879.0,2.12388818]
[1771831759950,3.92594894,1879.3,1879.0,2.12388818]
[1771831760151,3.92594894,1880.1,1879.0,2.12388818]
[1771831760352,3.92594894,1879.7,1879.0,2.1305809]
[1771831760942,3.92594894,1879.4,1879.0,0.00669272]
[1771831761350,10.63081191,1879.3,1879.0,0.00669272]
[1771831761549,3.92594894,1879.3,1879.0,3.98342901]
[1771831761949,6.70486297,1879.2,1879.0,3.98342901]
[1771831762146,3.92594894,1879.3,1878.8,3.97673629]
[1771831762550,3.92594894,1880.0,1878.8,3.97673629]
[1771831763151,3.92594894,1880.0,1878.8,3.98077869]
[1771831763352,3.92594894,1880.0,1879.0,1.81492318]
[1771831763552,3.92594894,1880.0,1879.1,3.97673629]
[1771831769557,3.92594894,1880.0,1879.3,3.97673629]
[1771831772264,3.92594894,1879.8,1879.4,3.97673629]
[1771831772464,30.76638034,1879.6,1879.4,3.97673629]
[1771831772764,3.92594894,1879.8,1879.4,3.97673629]
[1771831773159,3.92594894,1879.8,1879.3,8.38130182]
[1771831773462,3.92594894,1879.6,1879.5,4.40456553]
[1771831773663,3.61256466,1879.7,1879.5,4.40456553]
[1771831774364,3.61256466,1879.7,1879.4,3.97673629]
[1771831775863,3.61256466,1879.7,1879.3,10.66648026]
[1771831776163,3.61256466,1879.7,1879.4,3.97673629]
[1771831776362,3.61256466,1879.7,1879.3,10.66648026]
[1771831777164,3.61256466,1879.7,1879.4,3.97673629]
[1771831779860,3.92594894,1880.1,1879.4,3.97673629]
[1771831780064,3.92594894,1879.9,1879.4,3.97673629]
[1771831780265,4.49463392,1879.8,1879.4,3.97673629]
[1771831780463,4.49463392,1879.7,1879.4,3.97673629]
[1771831780666,3.92594894,1879.7,1879.4,3.97673629]
[1771831782264,3.92594894,1880.1,1879.4,3.97673629]
[1771831782465,3.92594894,1879.9,1879.4,3.97673629]
[1771831782664,4.49474433,1879.8,1879.4,3.97673629]
[1771831782963,0.56879539,1879.7,1879.4,3.97673629]
[1771831783165,3.92594894,1879.8,1879.4,3.97673629]
[1771831783364,0.56884256,1879.7,1879.4,3.97673629]
[1771831783661,3.92594894,1879.8,1879.4,3.97673629]
[1771831783963,0.56884256,1879.7,1879.5,1.81139436]
[1771831784166,3.92594894,1879.8,1879.5,5.78813065]
[1771831784360,3.92594894,1879.8,1879.4,3.97673629]
[1771831789768,3.92594894,1879.8,1879.3,1.81139436]
[1771831790565,3.92594894,1879.8,1879.3,7.16044349]
[1771831792172,3.92594894,1879.8,1879.4,5.34904913]
[1771831793873,3.92594894,1879.8,1879.1,15.52262345]
[1771831794073,3.92594894,1879.8,1879.0,5.34904913]
[1771831794275,0.26598,1880.2,1879.0,5.34904913]
[1771831794276,5.44265441,1879.6,1879.0,5.34904913]
[1771831794675,5.44265441,1879.6,1878.8,5.35309153]
[1771831794975,5.42372255,1879.4,1878.8,0.0040424]
[1771831795974,5.42372255,1879.4,1878.6,5.34904913]
[1771831796170,5.4082711,1879.2,1878.6,5.34904913]
[1771831796477,5.4082711,1879.0,1878.6,5.34904913]
[1771831796978,5.4082711,1879.0,1878.6,5.35572221]
[1771831798972,7.21966546,1879.0,1878.4,5.34904913]
[1771831799174,5.37177766,1878.9,1878.4,5.34904913]
[1771831800181,5.37843663,1878.9,1878.4,5.35348318]
[1771831800676,5.37843663,1878.9,1878.2,5.34904913]
[1771831800677,5.30855885,1878.8,1878.2,5.34904913]
[1771831801585,5.30855885,1878.8,1878.2,5.35348918]
[1771831801881,5.30855885,1878.8,1878.2,7.16488354]
[1771831802184,5.30855885,1878.8,1878.3,5.34904913]
[1771831812190,7.11995321,1878.8,1878.2,0.00444005]
[1771831812394,5.3169194,1878.5,1877.9,5.34904913]
[1771831813395,5.3169194,1878.5,1877.9,5.35526832]
[1771831818293,5.3169194,1878.5,1878.1,5.30990505]
[1771831818490,5.45059045,1878.7,1878.3,5.30990505]
[1771831818896,5.16162409,1878.5,1878.0,5.30990505]
[1771831819599,5.42920799,1878.7,1878.2,5.30990505]
[1771831820397,5.42920799,1878.7,1878.4,5.30990505]
[1771831820597,4.97143631,1878.9,1878.4,5.30990505]
[1771831823298,0.56282271,1878.8,1878.4,5.30990505]
[1771831823499,4.97143631,1878.9,1878.4,5.30990505]
[1771831824296,0.56330386,1878.8,1878.4,5.30990505]
[1771831824496,4.97143631,1878.9,1878.4,5.30990505]
[1771831824800,5.33690281,1878.8,1878.4,5.30990505]
[1771831825002,4.77359895,1878.8,1878.4,5.30990505]
[1771831826404,4.77359895,1878.8,1878.2,5.30990505]
[1771831826604,4.72214585,1878.6,1878.2,5.30990505]
[1771831829607,5.77916079,1878.5,1878.0,5.30990505]
[1771831829807,5.21512566,1878.5,1878.0,5.30990505]
[1771831834310,0.56414539,1878.4,1878.0,5.30990505]
[1771831834514,5.21512566,1878.4,1878.0,5.30990505]
[1771831842313,0.27285897,1878.9,1878.0,5.30990505]
[1771831842505,8.35946668,1879.8,1878.0,5.30990505]
[1771831842506,9.20692525,1879.2,1878.5,5.30990505]
[1771831842712,4.76203125,1879.1,1878.0,1.81409668]
[1771831843016,4.76203125,1879.1,1878.1,5.30990505]
[1771831843611,4.76749464,1879.1,1878.1,5.30990505]
[1771831844322,0.00546339,1879.1,1878.1,5.30990505]
[1771831845111,0.26613,1879.4,1878.6,5.30990505]
[1771831845416,5.44304549,1879.4,1878.6,5.30990505]
[1771831846018,5.44891574,1879.4,1878.6,5.30990505]
[1771831854622,5.69045082,1879.3,1878.6,5.30990505]
[1771831854823,5.13173351,1879.3,1878.6,5.30990505]
[1771831855017,0.27200025,1879.4,1878.6,7.12400173]
[1771831855018,0.00587025,1879.4,1878.6,7.12400173]
[1771831855324,0.55871804,1879.3,1878.7,5.46387241]
[1771831855519,5.10050757,1879.4,1878.7,5.46387241]
[1771831855719,0.55863717,1879.3,1878.7,5.46387241]
[1771831855920,5.10050757,1879.4,1878.7,5.46387241]
[1771831856122,0.55863719,1879.3,1878.7,5.46387241]
[1771831856320,5.10050757,1879.4,1878.7,5.46387241]
[1771831856517,5.10143948,1878.8,1878.3,5.46387241]
[1771831856920,5.06454881,1878.6,1878.0,5.46387241]
[1771831860828,5.19744776,1878.8,1878.0,5.46387241]
[1771831861030,0.26619,1878.9,1878.0,5.46387241]
[1771831861225,5.46363776,1878.9,1878.0,5.46387241]
[1771831868138,5.50163394,1878.8,1878.0,5.46387241]
[1771831868340,4.94348497,1878.8,1878.0,5.46387241]
[1771831873339,0.55885047,1878.7,1878.0,5.46387241]
[1771831873544,4.8044691,1878.6,1878.0,5.46387241]
[1771831877547,4.59996306,1878.4,1878.0,5.46387241]
[1771831887151,4.59996306,1878.4,1877.9,5.25522287]
[1771831887446,4.60495522,1878.2,1877.2,5.67509668]
[1771831887642,4.60495522,1878.2,1877.4,5.25522287]
[1771831888042,4.54687877,1878.0,1877.4,5.25522287]
[1771831888253,4.54687877,1877.8,1877.4,0.0047161]
[1771831888448,4.54687877,1877.6,1877.4,0.0047161]
[1771831888652,4.54687877,1877.6,1877.2,5.25522287]
[1771831889144,1.81810443,1878.0,1877.2,5.25522287]
[1771831889346,5.09611961,1877.9,1877.2,5.25522287]
[1771831889553,4.53777004,1877.7,1877.2,5.26194974]
[1771831892652,4.53777004,1877.7,1877.2,0.00672687]
[1771831892953,4.53777004,1877.7,1877.2,5.26194974]
[1771831894856,4.53777004,1877.7,1877.2,0.00672687]
[1771831895351,4.53777004,1877.7,1877.2,5.26194974]
[1771831898357,4.53777004,1877.7,1877.2,0.00672687]
[1771831900161,0.26637,1877.6,1877.2,0.00672687]
[1771831900364,4.08314956,1877.5,1877.0,5.25522287]
[1771831900561,4.08314956,1877.5,1876.5,5.25522287]
[1771831901365,4.04863734,1877.5,1877.1,5.25522287]
[1771831901664,4.04863734,1877.8,1877.3,5.25522287]
[1771831907071,3.81319374,1877.6,1877.3,5.25522287]
[1771831907472,4.07952374,1877.9,1877.3,5.25522287]
[1771831907770,3.77683731,1877.7,1877.3,5.25522287]
[1771831913276,4.21627358,1877.6,1877.3,5.25522287]
[1771831913476,3.65922313,1877.6,1877.3,5.25522287]
[1771831916179,0.55792682,1877.5,1877.3,5.25522287]
[1771831916379,3.65922313,1877.6,1877.3,5.25522287]
[1771831916677,0.55791425,1877.5,1877.3,5.25522287]
[1771831916873,3.65922313,1877.6,1877.3,5.25522287]
[1771831917179,0.55798644,1877.5,1877.3,5.25522287]
[1771831917374,0.55798644,1877.4,1877.3,5.25522287]
[1771831918479,0.55798644,1877.4,1877.1,4.60027764]
[1771831918678,3.50402977,1877.5,1877.1,4.60027764]
[1771831918874,0.55921774,1877.4,1877.1,4.60027764]
[1771831919075,3.50402977,1877.5,1877.1,4.60027764]
[1771831919280,0.55927444,1877.4,1877.1,4.60027764]
[1771831919481,3.50402977,1877.5,1877.1,4.60027764]
[1771831919677,0.55928003,1877.4,1877.1,4.60027764]
[1771831919878,3.50402977,1877.5,1877.1,4.60027764]
[1771831920182,0.5592823,1877.4,1877.1,4.60027764]
[1771831920378,3.50402977,1877.5,1877.1,4.60027764]
[1771831920575,0.55933098,1877.4,1877.1,4.60027764]
[1771831920775,0.55942551,1877.3,1877.1,4.60027764]
[1771831920978,3.50402977,1877.5,1877.1,4.60027764]
[1771831921277,0.5595281,1877.4,1877.1,4.60027764]
[1771831921474,0.5595281,1877.3,1877.1,4.60027764]
[1771831921682,3.50402977,1877.5,1877.1,4.60027764]
[1771831921873,0.55944372,1877.4,1877.1,4.60027764]
[1771831922072,0.55944372,1877.3,1877.1,4.60027764]
[1771831922274,3.38745015,1877.4,1877.1,4.60027764]
[1771831922486,0.55941435,1877.3,1877.1,4.60027764]
[1771831922685,0.55941435,1877.2,1877.1,4.60027764]
[1771831922985,0.55941435,1877.2,1876.7,4.60027764]
[1771831923180,3.34857302,1877.4,1876.7,4.60027764]
[1771831923381,3.90797499,1877.3,1876.7,4.60027764]
[1771831923581,0.55940197,1877.2,1876.7,4.60027764]
[1771831923876,3.31508358,1877.5,1876.7,4.60027764]
[1771831924086,7.53007486,1877.4,1876.7,4.60027764]
[1771831924279,0.55932904,1877.3,1876.7,4.60027764]
[1771831924481,0.55932904,1877.2,1876.7,4.60027764]
[1771831924680,3.31508358,1877.5,1876.7,4.60027764]
[1771831924983,7.52942567,1877.4,1876.7,4.60027764]
[1771831925285,0.55928013,1877.3,1876.7,4.60027764]
[1771831925482,0.55928013,1877.2,1876.7,4.60027764]
[1771831925683,5.1044392,1877.4,1876.7,4.60027764]
[1771831925885,0.55921968,1877.3,1876.7,4.60027764]
[1771831926184,0.55921968,1877.2,1876.7,4.60027764]
[1771831926484,5.1044392,1877.4,1876.7,4.60027764]
[1771831926685,3.81659565,1877.3,1876.7,4.60027764]
[1771831926887,3.78360498,1877.2,1876.7,4.60027764]
[1771831927190,0.55917058,1877.1,1876.7,4.60027764]
[1771831927383,3.22439734,1877.2,1876.7,4.60027764]
[1771831927588,0.55903874,1877.1,1876.7,4.60027764]
[1771831927788,3.22439734,1877.2,1876.7,4.60027764]
[1771831928090,0.55903978,1877.1,1876.7,4.60027764]
[1771831928288,3.22439734,1877.2,1876.7,4.60027764]
[1771831928489,0.55892321,1877.1,1876.7,4.60027764]
[1771831928791,5.00707932,1876.9,1876.6,4.60027764]
[1771831929086,3.17261774,1876.6,1875.9,4.60027764]
[1771831929287,2.37557892,1876.5,1875.9,4.60027764]
[1771831929492,1.81670159,1876.7,1875.9,4.60027764]
[1771831929690,3.43908774,1876.9,1875.9,4.60027764]
[1771831929691,0.55755758,1876.6,1876.0,1.81670159]
[1771831929891,0.00657648,1876.6,1876.1,4.60027764]
[1771831930890,3.11742528,1877.1,1876.3,4.60027764]
[1771831931197,7.51555506,1877.0,1876.3,4.60027764]
[1771831931395,0.55723426,1876.9,1876.3,4.60027764]
[1771831931596,3.11742528,1877.1,1876.3,4.60027764]
[1771831931797,0.55703065,1877.0,1876.3,4.60027764]
[1771831932095,3.12214591,1877.1,1876.3,4.60027764]
[1771831932394,0.55720523,1877.0,1876.3,4.60027764]
[1771831932694,3.12214591,1877.1,1876.3,4.60027764]
[1771831932893,3.70607378,1877.0,1876.3,4.60027764]
[1771831933090,3.14889484,1876.9,1876.3,4.60027764]
[1771831934095,3.12410173,1877.1,1876.3,4.60027764]
[1771831934290,0.55703244,1877.0,1876.3,4.60027764]
[1771831934486,3.12410173,1877.1,1876.3,4.60027764]
[1771831934691,0.55698145,1877.0,1876.3,4.60027764]
[1771831934889,0.00472063,1877.1,1876.9,4.60027764]
[1771831935197,3.15665595,1877.6,1876.9,4.60027764]
[1771831935392,0.55728407,1877.5,1876.9,4.60027764]
[1771831935695,3.15665595,1877.6,1876.9,4.60027764]
[1771831935696,0.55728407,1877.4,1876.9,4.60027764]
[1771831935893,3.15665595,1877.6,1877.1,4.60027764]
[1771831936095,0.00447532,1877.6,1877.3,4.60027764]
[1771831950503,2.98221654,1878.3,1877.5,4.08040463]
[1771831950700,10.22500268,1878.2,1877.5,4.08040463]
[1771831950900,7.50905614,1878.1,1877.5,4.08040463]
[1771831951100,1.81670159,1878.2,1877.5,4.08040463]
[1771831951504,0.00491413,1878.2,1877.5,4.08507175]
[1771831951804,0.00491413,1878.2,1877.7,4.08040463]
[1771831952303,0.26627,1878.3,1877.7,4.08040463]
[1771831952499,2.6597304,1878.7,1878.1,4.08040463]
[1771831952705,0.55649046,1878.6,1878.1,4.08040463]
[1771831952901,4.67990128,1878.8,1878.1,4.08040463]
[1771831953097,0.55654921,1878.7,1878.1,4.08040463]
[1771831953300,0.00672401,1878.7,1878.1,4.08040463]
[1771831963115,2.38613505,1878.7,1878.1,4.08040463]
[1771831965421,0.00672401,1878.7,1878.1,4.08040463]
[1771831968018,2.20352728,1878.7,1878.1,4.08040463]
[1771831968321,2.20352728,1878.7,1877.7,3.48459406]